fUSD/lending_fUSD_20250311
["ID","MTS","AMOUNT","RATE_DAILY","PERIOD"]
[355913811,1741714563235,1300.0,8.7e-05,3]
[355913812,1741714565931,200.0,8.8e-05,3]
[355913875,1741714631820,-150.0,8.879e-05,2]
[355913876,1741714631846,-1285.39,8.88e-05,2]
[355913877,1741714631872,-619.44,8.88e-05,2]
[355913878,1741714631899,-500.0,8.88e-05,2]
[355913879,1741714631925,-500.0,8.88e-05,2]
[355913880,1741714631954,-500.0,8.88e-05,2]
[355913881,1741714631980,-500.0,8.88e-05,2]
[355913882,1741714632006,-500.0,8.88e-05,2]
[355913883,1741714632032,-500.0,8.88e-05,2]
[355913884,1741714632058,-500.96,8.88e-05,2]
[355913885,1741714632084,-500.0,8.88e-05,2]
[355913886,1741714632109,-1447.62,8.88e-05,2]
[355913887,1741714632137,-500.0,8.88e-05,2]
[355913888,1741714632164,-883.21,8.88e-05,2]
[355913889,1741714632191,-2107.34,8.88e-05,2]
[355913890,1741714632221,-575.91,8.88e-05,2]
[355913891,1741714632248,-500.0,8.88e-05,2]
[355913892,1741714632275,-500.0,8.88e-05,2]
[355913893,1741714632301,-500.0,8.88e-05,2]
[355913894,1741714632327,-500.0,8.88e-05,2]
[355913895,1741714632352,-565.43,8.88e-05,2]
[355913896,1741714632380,-1288.45,8.88e-05,2]
[355913897,1741714632407,-1286.58,8.88e-05,2]
[355913898,1741714632434,-500.0,8.88e-05,2]
[355913899,1741714632463,-1284.82,8.88e-05,2]
[355913900,1741714632490,-500.0,8.88e-05,2]
[355913901,1741714632517,-685.31,8.88e-05,2]
[355913902,1741714632543,-500.0,8.88e-05,2]
[355913903,1741714632569,-1122.94,8.88e-05,2]
[355913904,1741714632595,-500.0,8.88e-05,2]
[355913905,1741714632622,-500.0,8.88e-05,2]
[355913906,1741714632647,-1223.93,8.88e-05,2]
[355913907,1741714632672,-576.15,8.88e-05,2]
[355913908,1741714632698,-500.0,8.88e-05,2]
[355913909,1741714632724,-577.83,8.88e-05,2]
[355913910,1741714632750,-831.22,8.88e-05,2]
[355913911,1741714632775,-500.0,8.88e-05,2]
[355913912,1741714632801,-500.0,8.88e-05,2]
[355913913,1741714632827,-624.32,8.88e-05,2]
[355913914,1741714632853,-604.47,8.88e-05,2]
[355913915,1741714632879,-765.13,8.88e-05,2]
[355913916,1741714632904,-659.09,8.88e-05,2]
[355913917,1741714632930,-500.0,8.88e-05,2]
[355913918,1741714632956,-940.54,8.88e-05,2]
[355913919,1741714632982,-500.0,8.88e-05,2]
[355913920,1741714633008,-500.0,8.88e-05,2]
[355913921,1741714633034,-2066.5,8.88e-05,2]
[355913922,1741714633060,-623.06,8.88e-05,2]
[355913923,1741714633087,-635.22,8.88e-05,2]
[355913924,1741714633112,-500.0,8.88e-05,2]
[355913925,1741714633138,-500.0,8.88e-05,2]
[355913927,1741714633164,-500.0,8.88e-05,2]
[355913929,1741714633190,-500.0,8.88e-05,2]
[355913930,1741714633218,-1089.77,8.88e-05,2]
[355913931,1741714633245,-514.9,8.88e-05,2]
[355913932,1741714633271,-1956.38,8.88e-05,2]
[355913933,1741714633298,-500.0,8.88e-05,2]
[355913934,1741714633325,-648.82,8.88e-05,2]
[355913935,1741714633352,-514.68,8.88e-05,2]
[355913936,1741714633384,-1103.22,8.88e-05,2]
[355913937,1741714633411,-500.0,8.88e-05,2]
[355913938,1741714633439,-500.0,8.88e-05,2]
[355913939,1741714633468,-500.0,8.88e-05,2]
[355913940,1741714633496,-500.0,8.88e-05,2]
[355913941,1741714633523,-605.40459044,8.88e-05,2]
[355913942,1741714633550,-500.0,8.88e-05,2]
[355913943,1741714633578,-549.37871623,8.88e-05,2]
[355913944,1741714633604,-605.44,8.88e-05,2]
[355913945,1741714633633,-500.0,8.88e-05,2]
[355913946,1741714633661,-579.60447823,8.88e-05,2]
[355913947,1741714633689,-500.0,8.88e-05,2]
[355913948,1741714633717,-1355.09,8.88e-05,2]
[355913949,1741714633743,-150.0,8.881e-05,2]
[355913950,1741714633770,-550.0,8.881e-05,2]
[355913951,1741714633798,-500.0,8.881e-05,2]
[355913952,1741714633826,-844.24,8.881e-05,2]
[355913953,1741714633854,-500.0,8.881e-05,2]
[355913954,1741714633882,-500.0,8.881e-05,2]
[355913955,1741714633910,-1546.19,8.881e-05,2]
[355913956,1741714633938,-500.0,8.881e-05,2]
[355913957,1741714633968,-1733.45,8.881e-05,2]
[355913958,1741714634247,-500.0,8.881e-05,2]
[355913959,1741714634275,-510.03909727,8.881e-05,2]
[355913960,1741714634302,-500.0,8.881e-05,2]
[355913961,1741714634329,-500.0,8.881e-05,2]
[355913962,1741714634360,-500.0,8.881e-05,2]
[355913963,1741714634388,-500.0,8.881e-05,2]
[355913964,1741714634418,-780.44,8.881e-05,2]
[355913965,1741714634451,-500.0,8.881e-05,2]
[355913966,1741714634479,-500.0,8.881e-05,2]
[355913967,1741714634508,-773.35,8.881e-05,2]
[355913968,1741714634536,-500.0,8.881e-05,2]
[355913969,1741714634563,-500.0,8.881e-05,2]
[355913970,1741714634590,-500.0,8.881e-05,2]
[355913971,1741714634617,-500.0,8.881e-05,2]
[355913972,1741714634643,-500.0,8.881e-05,2]
[355913973,1741714634671,-657.11,8.881e-05,2]
[355913974,1741714634699,-500.0,8.881e-05,2]
[355913975,1741714634727,-500.0,8.881e-05,2]
[355913976,1741714634755,-1822.73,8.881e-05,2]
[355913977,1741714634782,-1501.66,8.881e-05,2]
[355913978,1741714634809,-500.0,8.881e-05,2]
[355913979,1741714634835,-500.0,8.881e-05,2]
[355913980,1741714634861,-500.0,8.881e-05,2]
[355913981,1741714634888,-500.0,8.881e-05,2]
[355913982,1741714634917,-500.0,8.881e-05,2]
[355913983,1741714634946,-589.82670115,8.881e-05,2]
[355913984,1741714634975,-500.0,8.881e-05,2]
[355913985,1741714635001,-847.2,8.881e-05,2]
[355913986,1741714635027,-500.0,8.881e-05,2]
[355913987,1741714635054,-751.1,8.881e-05,2]
[355913988,1741714635080,-1852.67,8.881e-05,2]
[355913989,1741714635107,-500.0,8.881e-05,2]
[355913990,1741714635133,-733.85,8.881e-05,2]
[355913991,1741714635160,-500.0,8.881e-05,2]
[355913992,1741714635187,-502.1546641,8.881e-05,2]
[355913993,1741714635215,-500.0,8.881e-05,2]
[355913994,1741714635243,-500.0,8.881e-05,2]
[355913995,1741714635271,-500.0,8.881e-05,2]
[355913996,1741714635297,-855.04,8.881e-05,2]
[355913997,1741714635324,-500.0,8.881e-05,2]
[355913998,1741714635352,-500.0,8.881e-05,2]
[355913999,1741714635383,-697.58,8.881e-05,2]
[355914000,1741714635410,-500.0,8.881e-05,2]
[355914001,1741714635438,-500.0,8.881e-05,2]
[355914002,1741714635468,-1197.9,8.881e-05,2]
[355914003,1741714635495,-500.0,8.881e-05,2]
[355914004,1741714635522,-755.88,8.881e-05,2]
[355914005,1741714635549,-374.67810756,8.881e-05,2]
[355914006,1741714635576,-500.0,8.881e-05,2]
[355914007,1741714635603,-500.0,8.881e-05,2]
[355914008,1741714635630,-500.0,8.881e-05,2]
[355914009,1741714635656,-500.0,8.881e-05,2]
[355914010,1741714635682,-580.63,8.881e-05,2]
[355914011,1741714635712,-750.6,8.881e-05,2]
[355914012,1741714635738,-500.0,8.881e-05,2]
[355914013,1741714635765,-500.0,8.881e-05,2]
[355914014,1741714635792,-500.0,8.881e-05,2]
[355914015,1741714635818,-500.0,8.881e-05,2]
[355914016,1741714635845,-500.0,8.881e-05,2]
[355914017,1741714635874,-500.0,8.881e-05,2]
[355914018,1741714635901,-643.75,8.881e-05,2]
[355914019,1741714635929,-2862.5,8.881e-05,2]
[355914020,1741714635958,-1993.59,8.881e-05,2]
[355914021,1741714635984,-500.0,8.881e-05,2]
[355914022,1741714636012,-500.0,8.881e-05,2]
[355914023,1741714636039,-2090.53,8.881e-05,2]
[355914024,1741714636067,-2001.15,8.881e-05,2]
[355914025,1741714636094,-500.0,8.881e-05,2]
[355914026,1741714636122,-1838.19,8.881e-05,2]
[355914027,1741714636150,-500.0,8.881e-05,2]
[355914028,1741714636178,-500.0,8.881e-05,2]
[355914029,1741714636207,-1555.74,8.881e-05,2]
[355914030,1741714636236,-2412.74,8.881e-05,2]
[355914031,1741714636263,-1546.42,8.881e-05,2]
[355914032,1741714636291,-500.0,8.881e-05,2]
[355914033,1741714636318,-511.55,8.881e-05,2]
[355914034,1741714636348,-500.0,8.881e-05,2]
[355914035,1741714636381,-826.53,8.881e-05,2]
[355914036,1741714636410,-500.0,8.881e-05,2]
[355914037,1741714636438,-500.0,8.881e-05,2]
[355914038,1741714636468,-500.0,8.881e-05,2]
[355914039,1741714636497,-643.47,8.881e-05,2]
[355914040,1741714636525,-741.61,8.881e-05,2]
[355914041,1741714636551,-500.0,8.881e-05,2]
[355914042,1741714636579,-500.0,8.881e-05,2]
[355914043,1741714636606,-500.0,8.881e-05,2]
[355914044,1741714636633,-1913.89,8.881e-05,2]
[355914045,1741714636660,-2067.6,8.881e-05,2]
[355914046,1741714636686,-1890.91,8.881e-05,2]
[355914047,1741714636714,-1374.87,8.881e-05,2]
[355914048,1741714636740,-500.0,8.881e-05,2]
[355914049,1741714636767,-2692.45,8.881e-05,2]
[355914050,1741714636794,-500.0,8.881e-05,2]
[355914051,1741714636821,-961.23,8.881e-05,2]
[355914052,1741714636849,-500.0,8.881e-05,2]
[355914053,1741714636876,-500.0,8.881e-05,2]
[355914054,1741714636903,-1616.45,8.881e-05,2]
[355914055,1741714636931,-500.0,8.881e-05,2]
[355914056,1741714636960,-598.78,8.881e-05,2]
[355914057,1741714636987,-1547.0,8.881e-05,2]
[355914058,1741714637016,-992.98,8.881e-05,2]
[355914059,1741714637043,-500.0,8.881e-05,2]
[355914060,1741714637076,-528.47,8.881e-05,2]
[355914061,1741714637105,-4951.42,8.881e-05,2]
[355914062,1741714637132,-591.36,8.881e-05,2]
[355914063,1741714637160,-500.0,8.881e-05,2]
[355914064,1741714637190,-1059.98,8.881e-05,2]
[355914065,1741714637221,-500.0,8.881e-05,2]
[355914066,1741714637249,-2359.12,8.881e-05,2]
[355914067,1741714637277,-500.0,8.881e-05,2]
[355914068,1741714637304,-500.0,8.881e-05,2]
[355914069,1741714637333,-500.0,8.881e-05,2]
[355914070,1741714637366,-1200.41,8.881e-05,2]
[355914071,1741714637394,-500.0,8.881e-05,2]
[355914072,1741714637422,-500.0,8.881e-05,2]
[355914073,1741714637450,-500.0,8.881e-05,2]
[355914074,1741714637478,-573.83,8.881e-05,2]
[355914075,1741714637506,-500.0,8.881e-05,2]
[355914076,1741714637536,-500.0,8.881e-05,2]
[355914077,1741714637563,-537.14756191,8.881e-05,2]
[355914078,1741714637592,-1478.98,8.881e-05,2]
[355914079,1741714637618,-673.26,8.881e-05,2]
[355914080,1741714637645,-500.0,8.881e-05,2]
[355914081,1741714637672,-1164.02,8.881e-05,2]
[355914082,1741714637701,-2848.72,8.881e-05,2]
[355914083,1741714637728,-1099.36,8.881e-05,2]
[355914084,1741714637757,-1487.65,8.881e-05,2]
[355914085,1741714637785,-2183.66,8.881e-05,2]
[355914086,1741714637813,-961.51,8.881e-05,2]
[355914087,1741714638060,-810.08,8.881e-05,2]
[355914088,1741714638089,-3432.33,8.881e-05,2]
[355914089,1741714638118,-1165.77,8.881e-05,2]
[355914090,1741714638147,-500.0,8.881e-05,2]
[355914091,1741714638177,-500.0,8.881e-05,2]
[355914092,1741714638212,-1137.46,8.881e-05,2]
[355914093,1741714638242,-526.02229885,8.881e-05,2]
[355914094,1741714638274,-1262.55,8.881e-05,2]
[355914095,1741714638301,-566.28212686,8.881e-05,2]
[355914096,1741714638329,-500.0,8.881e-05,2]
[355914097,1741714638360,-500.0,8.881e-05,2]
[355914098,1741714638389,-500.0,8.881e-05,2]
[355914099,1741714638418,-500.0,8.881e-05,2]
[355914100,1741714638453,-699.05,8.881e-05,2]
[355914101,1741714638481,-1012.46,8.881e-05,2]
[355914102,1741714638509,-500.0,8.881e-05,2]
[355914103,1741714638538,-2308.7,8.881e-05,2]
[355914104,1741714638567,-500.0,8.881e-05,2]
[355914105,1741714638596,-500.0,8.881e-05,2]
[355914106,1741714638625,-1349.15,8.881e-05,2]
[355914107,1741714638654,-556.4,8.881e-05,2]
[355914108,1741714638682,-504.89933286,8.881e-05,2]
[355914109,1741714638712,-1000.0,8.881e-05,2]
[355914110,1741714638740,-514.08338949,8.881e-05,2]
[355914111,1741714638768,-2054.64,8.881e-05,2]
[355914112,1741714638796,-2197.88,8.881e-05,2]
[355914113,1741714638824,-1213.65,8.881e-05,2]
[355914114,1741714638851,-500.0,8.881e-05,2]
[355914115,1741714638879,-1387.42,8.881e-05,2]
[355914116,1741714638908,-900.39,8.881e-05,2]
[355914117,1741714638938,-500.0,8.881e-05,2]
[355914118,1741714638970,-500.0,8.881e-05,2]
[355914119,1741714638999,-821.24,8.881e-05,2]
[355914120,1741714639028,-1682.28,8.881e-05,2]
[355914121,1741714639056,-635.24678598,8.881e-05,2]
[355914122,1741714639084,-500.0,8.881e-05,2]
[355914123,1741714639113,-1992.78,8.881e-05,2]
[355914124,1741714639141,-746.68,8.881e-05,2]
[355914125,1741714639169,-935.81,8.881e-05,2]
[355914126,1741714639198,-960.5,8.881e-05,2]
[355914127,1741714639228,-500.0,8.881e-05,2]
[355914128,1741714639258,-2177.13,8.881e-05,2]
[355914129,1741714639285,-500.0,8.881e-05,2]
[355914130,1741714639313,-1075.98,8.881e-05,2]
[355914131,1741714639341,-500.0,8.881e-05,2]
[355914132,1741714639372,-563.26,8.881e-05,2]
[355914133,1741714639401,-500.0,8.881e-05,2]
[355914134,1741714639428,-500.0,8.881e-05,2]
[355914135,1741714639460,-500.0,8.881e-05,2]
[355914136,1741714639488,-611.7,8.881e-05,2]
[355914137,1741714639516,-500.0,8.881e-05,2]
[355914138,1741714639544,-578.73,8.881e-05,2]
[355914139,1741714639571,-1152.58,8.881e-05,2]
[355914140,1741714639598,-500.0,8.881e-05,2]
[355914141,1741714639624,-500.0,8.881e-05,2]
[355914142,1741714639650,-1702.38,8.881e-05,2]
[355914143,1741714639677,-651.81,8.881e-05,2]
[355914144,1741714639705,-1003.03,8.881e-05,2]
[355914145,1741714639731,-500.0,8.881e-05,2]
[355914146,1741714639758,-500.0,8.881e-05,2]
[355914147,1741714639784,-500.0,8.881e-05,2]
[355914148,1741714639811,-500.0,8.881e-05,2]
[355914149,1741714639839,-500.0,8.881e-05,2]
[355914150,1741714639867,-3081.62,8.881e-05,2]
[355914151,1741714639893,-1261.3,8.881e-05,2]
[355914152,1741714639920,-500.0,8.881e-05,2]
[355914153,1741714639947,-1684.53,8.881e-05,2]
[355914154,1741714639975,-500.0,8.881e-05,2]
[355914155,1741714640001,-500.0,8.881e-05,2]
[355914156,1741714640028,-1101.04,8.881e-05,2]
[355914157,1741714640056,-788.36,8.881e-05,2]
[355914158,1741714640083,-500.0,8.881e-05,2]
[355914159,1741714640111,-500.0,8.881e-05,2]
[355914160,1741714640140,-500.0,8.881e-05,2]
[355914161,1741714640170,-529.97,8.881e-05,2]
[355914162,1741714640199,-500.0,8.881e-05,2]
[355914163,1741714640229,-814.63,8.881e-05,2]
[355914164,1741714640257,-500.0,8.881e-05,2]
[355914165,1741714640285,-500.0,8.881e-05,2]
[355914166,1741714640317,-2432.51,8.881e-05,2]
[355914167,1741714640348,-1047.01,8.881e-05,2]
[355914168,1741714640381,-500.0,8.881e-05,2]
[355914169,1741714640410,-1231.76,8.881e-05,2]
[355914170,1741714640438,-977.49,8.881e-05,2]
[355914171,1741714640471,-1392.16,8.881e-05,2]
[355914172,1741714640500,-500.0,8.881e-05,2]
[355914173,1741714640530,-1055.95,8.881e-05,2]
[355914174,1741714640557,-873.13,8.881e-05,2]
[355914175,1741714640585,-1479.48,8.881e-05,2]
[355914176,1741714640612,-403.08351649,8.881e-05,2]
[355914177,1741714640639,-500.0,8.881e-05,2]
[355914178,1741714640667,-500.0,8.881e-05,2]
[355914179,1741714640695,-1705.86,8.881e-05,2]
[355914180,1741714640728,-795.55,8.881e-05,2]
[355914181,1741714640755,-672.74,8.881e-05,2]
[355914182,1741714640782,-1197.47,8.881e-05,2]
[355914183,1741714640810,-688.73,8.881e-05,2]
[355914184,1741714640837,-1743.56,8.881e-05,2]
[355914185,1741714640864,-2620.77,8.881e-05,2]
[355914186,1741714640892,-500.0,8.881e-05,2]
[355914187,1741714640919,-1295.4,8.881e-05,2]
[355914188,1741714640946,-874.64,8.881e-05,2]
[355914189,1741714640976,-3233.61,8.881e-05,2]
[355914190,1741714641003,-384.8414129,8.881e-05,2]
[355914191,1741714641031,-847.26,8.881e-05,2]
[355914192,1741714641060,-883.15,8.881e-05,2]
[355914193,1741714641087,-1491.38,8.881e-05,2]
[355914194,1741714641115,-500.0,8.881e-05,2]
[355914195,1741714641143,-7848.47,8.881e-05,2]
[355914196,1741714641170,-1831.05,8.881e-05,2]
[355914197,1741714641198,-500.0,8.881e-05,2]
[355914198,1741714641230,-1345.86,8.881e-05,2]
[355914199,1741714641258,-2868.11,8.881e-05,2]
[355914200,1741714641285,-500.0,8.881e-05,2]
[355914201,1741714641312,-1463.73,8.881e-05,2]
[355914202,1741714641339,-1064.12,8.881e-05,2]
[355914203,1741714641368,-3441.3,8.881e-05,2]
[355914204,1741714641395,-547.27,8.881e-05,2]
[355914205,1741714641421,-510.0,8.881e-05,2]
[355914206,1741714641446,-500.0,8.881e-05,2]
[355914207,1741714641474,-889.11,8.881e-05,2]
[355914208,1741714641500,-500.0,8.881e-05,2]
[355914209,1741714641527,-1245.74,8.881e-05,2]
[355914210,1741714641553,-1201.55,8.881e-05,2]
[355914211,1741714641579,-500.0,8.881e-05,2]
[355914212,1741714641807,-437.77205286,8.881e-05,2]
[355914213,1741714641835,-500.0,8.881e-05,2]
[355914214,1741714641862,-1548.91,8.881e-05,2]
[355914215,1741714641889,-1974.05,8.881e-05,2]
[355914216,1741714641915,-1198.17,8.881e-05,2]
[355914217,1741714641941,-500.0,8.881e-05,2]
[355914218,1741714641969,-534.31,8.881e-05,2]
[355914219,1741714641997,-2682.91,8.881e-05,2]
[355914220,1741714642024,-500.0,8.881e-05,2]
[355914221,1741714642052,-502.91244869,8.881e-05,2]
[355914222,1741714642079,-1747.5,8.881e-05,2]
[355914223,1741714642106,-1838.45,8.881e-05,2]
[355914224,1741714642134,-500.0,8.882e-05,2]
[355914225,1741714642160,-500.0,8.882e-05,2]
[355914226,1741714642187,-500.0,8.882e-05,2]
[355914227,1741714642215,-500.0,8.882e-05,2]
[355914228,1741714642242,-1209.38,8.882e-05,2]
[355914229,1741714642269,-500.0,8.882e-05,2]
[355914230,1741714642296,-1609.14,8.882e-05,14]
[355914231,1741714642323,-961.59,8.882e-05,2]
[355914232,1741714642351,-500.0,8.882e-05,2]
[355914233,1741714642379,-500.0,8.882e-05,2]
[355914234,1741714642406,-500.0,8.882e-05,2]
[355914235,1741714642433,-791.55,8.882e-05,2]
[355914236,1741714642464,-500.0,8.882e-05,2]
[355914237,1741714642491,-687.47,8.882e-05,2]
[355914238,1741714642518,-500.0,8.882e-05,2]
[355914239,1741714642544,-737.23,8.882e-05,2]
[355914240,1741714642571,-2223.19,8.882e-05,2]
[355914241,1741714642599,-1191.86,8.882e-05,2]
[355914242,1741714642626,-631.63,8.882e-05,2]
[355914243,1741714642653,-607.69,8.882e-05,2]
[355914244,1741714642680,-1439.27,8.882e-05,2]
[355914245,1741714642708,-500.0,8.882e-05,2]
[355914246,1741714642735,-500.0,8.882e-05,2]
[355914247,1741714642762,-621.33,8.882e-05,2]
[355914248,1741714642788,-500.0,8.882e-05,2]
[355914249,1741714642815,-636.11,8.882e-05,2]
[355914250,1741714642841,-653.98,8.882e-05,2]
[355914251,1741714642867,-1066.65,8.882e-05,2]
[355914252,1741714642893,-500.0,8.882e-05,2]
[355914253,1741714642919,-500.0,8.882e-05,2]
[355914254,1741714642946,-500.0,8.882e-05,2]
[355914255,1741714642973,-500.0,8.882e-05,2]
[355914256,1741714642999,-500.0,8.882e-05,2]
[355914257,1741714643026,-854.78,8.882e-05,2]
[355914258,1741714643053,-500.0,8.882e-05,2]
[355914259,1741714643082,-500.0,8.882e-05,2]
[355914260,1741714643108,-500.0,8.882e-05,2]
[355914261,1741714643136,-500.0,8.882e-05,2]
[355914262,1741714643163,-1000.03,8.882e-05,2]
[355914263,1741714643190,-500.0,8.882e-05,2]
[355914264,1741714643218,-500.0,8.882e-05,2]
[355914265,1741714643246,-500.0,8.882e-05,2]
[355914266,1741714643273,-500.0,8.882e-05,2]
[355914267,1741714643300,-1693.65,8.882e-05,2]
[355914268,1741714643326,-500.0,8.882e-05,2]
[355914269,1741714643353,-500.0,8.882e-05,2]
[355914270,1741714643383,-500.0,8.882e-05,2]
[355914271,1741714643411,-1856.82,8.882e-05,2]
[355914272,1741714643439,-1089.44,8.882e-05,2]
[355914273,1741714643470,-532.57945726,8.882e-05,2]
[355914274,1741714643497,-500.0,8.882e-05,2]
[355914275,1741714643524,-500.0,8.882e-05,2]
[355914276,1741714643550,-500.0,8.882e-05,2]
[355914277,1741714643576,-500.0,8.882e-05,2]
[355914278,1741714643603,-500.0,8.882e-05,2]
[355914279,1741714643630,-1158.64,8.882e-05,2]
[355914281,1741714643656,-500.0,8.882e-05,2]
[355914282,1741714643683,-500.0,8.882e-05,2]
[355914283,1741714643711,-500.0,8.882e-05,2]
[355914284,1741714643738,-500.0,8.882e-05,2]
[355914285,1741714643765,-500.0,8.882e-05,2]
[355914286,1741714643791,-500.0,8.882e-05,2]
[355914287,1741714643818,-500.0,8.882e-05,2]
[355914288,1741714643845,-2052.31,8.882e-05,2]
[355914289,1741714643872,-500.0,8.882e-05,2]
[355914290,1741714643898,-505.30801352,8.882e-05,2]
[355914291,1741714643924,-500.0,8.882e-05,2]
[355914292,1741714643951,-500.0,8.882e-05,2]
[355914293,1741714643979,-500.0,8.882e-05,2]
[355914294,1741714644005,-500.0,8.882e-05,2]
[355914295,1741714644033,-1175.93,8.882e-05,2]
[355914296,1741714644059,-500.0,8.882e-05,2]
[355914297,1741714644085,-667.51,8.882e-05,2]
[355914298,1741714644112,-500.0,8.882e-05,2]
[355914299,1741714644138,-500.0,8.882e-05,2]
[355914300,1741714644165,-500.0,8.882e-05,2]
[355914301,1741714644191,-994.22,8.882e-05,2]
[355914302,1741714644219,-500.0,8.882e-05,2]
[355914303,1741714644245,-500.0,8.882e-05,2]
[355914304,1741714644272,-680.67,8.882e-05,2]
[355914305,1741714644298,-1026.57,8.882e-05,2]
[355914306,1741714644324,-500.0,8.882e-05,2]
[355914307,1741714644356,-500.0,8.882e-05,2]
[355914308,1741714644383,-500.0,8.882e-05,2]
[355914309,1741714644412,-1326.5,8.882e-05,2]
[355914310,1741714644440,-500.0,8.882e-05,2]
[355914311,1741714644468,-1736.86,8.882e-05,2]
[355914312,1741714644495,-500.0,8.882e-05,2]
[355914313,1741714644522,-500.0,8.882e-05,2]
[355914314,1741714644549,-659.93,8.882e-05,2]
[355914315,1741714644575,-647.2,8.882e-05,2]
[355914316,1741714644601,-632.87,8.882e-05,2]
[355914317,1741714644627,-500.0,8.882e-05,2]
[355914318,1741714644654,-2031.67,8.882e-05,2]
[355914319,1741714644680,-500.0,8.882e-05,2]
[355914320,1741714644708,-500.0,8.882e-05,2]
[355914321,1741714644735,-814.3,8.882e-05,2]
[355914322,1741714644761,-500.0,8.882e-05,2]
[355914323,1741714644788,-500.0,8.882e-05,2]
[355914324,1741714644816,-500.0,8.882e-05,2]
[355914325,1741714644842,-500.0,8.882e-05,2]
[355914326,1741714644868,-500.0,8.882e-05,2]
[355914327,1741714644895,-500.0,8.882e-05,2]
[355914328,1741714644921,-551.06,8.882e-05,2]
[355914329,1741714644948,-537.94580875,8.882e-05,2]
[355914330,1741714644975,-554.13,8.882e-05,2]
[355914331,1741714645002,-580.51172853,8.882e-05,2]
[355914332,1741714645029,-500.0,8.882e-05,2]
[355914333,1741714645056,-500.0,8.882e-05,2]
[355914334,1741714645243,-500.0,8.882e-05,2]
[355914335,1741714645308,-500.0,8.882e-05,2]
[355914336,1741714645336,-500.0,8.882e-05,2]
[355914337,1741714645365,-500.0,8.882e-05,2]
[355914338,1741714645393,-566.64,8.882e-05,2]
[355914339,1741714645420,-500.0,8.882e-05,2]
[355914340,1741714645449,-509.77,8.882e-05,2]
[355914341,1741714645478,-500.0,8.882e-05,2]
[355914342,1741714645505,-500.0,8.882e-05,2]
[355914343,1741714645533,-500.0,8.882e-05,2]
[355914344,1741714645560,-654.44,8.882e-05,2]
[355914345,1741714645587,-910.75,8.882e-05,2]
[355914346,1741714645613,-500.0,8.882e-05,2]
[355914347,1741714645640,-2236.59,8.882e-05,2]
[355914348,1741714645666,-500.0,8.882e-05,2]
[355914349,1741714645694,-500.0,8.882e-05,2]
[355914350,1741714645723,-539.02917522,8.882e-05,2]
[355914351,1741714645750,-500.0,8.882e-05,2]
[355914352,1741714645776,-500.0,8.882e-05,2]
[355914353,1741714645802,-500.0,8.882e-05,2]
[355914354,1741714645829,-500.0,8.882e-05,2]
[355914355,1741714645855,-500.0,8.882e-05,2]
[355914356,1741714645881,-500.0,8.882e-05,2]
[355914357,1741714645907,-500.0,8.882e-05,2]
[355914358,1741714645934,-500.0,8.882e-05,2]
[355914359,1741714645961,-500.0,8.882e-05,2]
[355914360,1741714645988,-246.03571947,8.882e-05,2]
[355914361,1741714646014,-521.74,8.882e-05,2]
[355914362,1741714646041,-500.0,8.882e-05,2]
[355914363,1741714646068,-1454.11,8.882e-05,2]
[355914364,1741714646095,-500.0,8.882e-05,2]
[355914365,1741714646124,-500.0,8.882e-05,2]
[355914366,1741714646150,-500.0,8.882e-05,2]
[355914367,1741714646178,-743.34,8.882e-05,2]
[355914368,1741714646207,-500.0,8.882e-05,2]
[355914369,1741714646236,-2228.82,8.882e-05,2]
[355914370,1741714646264,-577.63,8.883e-05,2]
[355914371,1741714646292,-500.0,8.883e-05,2]
[355914372,1741714646320,-500.0,8.883e-05,2]
[355914373,1741714646348,-500.0,8.883e-05,7]
[355914374,1741714646379,-500.0,8.883e-05,2]
[355914375,1741714646406,-500.0,8.883e-05,2]